{"text_format":"1","workbook":"xlsx","n_sheets":4,"sheets":["1 contre 1","2 contre 2","3 contre 3","Poules indépendantes"],"not_rendered":{"charts":0,"images":4,"macros":1,"external_links":0,"defined_names":13,"comments":0,"pivot_tables":0},"unopened":[],"bounds":{"document_bytes":16777216,"sheet_cells":100000,"rows_first":2000,"rows_last":500,"rows_between":2000,"halvings":0,"cell_chars":16384,"cell_head_chars":4096},"cells_cut":0,"cells_raw":0,"read":"whole","date_system":"1900"}

{"sheet":"1 contre 1","index":0,"n_rows":13,"n_cols":19,"rows_kept":13,"cut":false,"hidden":false,"merged":[]}
[]
[null,"Tournois 1 contre 1. Ne se rencontrent plusieurs fois."]
[null,"Il pourrait être empêché que deux personnes d'un même club ne soient adversaires."]
[]
[null,10," joueurs",null,9," manches"]
[]
[null,{"$f":"\"Manche \"&COLUMN()/2","v":"Manche 1"},null,{"$f":"\"Manche \"&COLUMN()/2","v":"Manche 2"},null,{"$f":"\"Manche \"&COLUMN()/2","v":"Manche 3"},null,{"$f":"\"Manche \"&COLUMN()/2","v":"Manche 4"},null,{"$f":"\"Manche \"&COLUMN()/2","v":"Manche 5"},null,{"$f":"\"Manche \"&COLUMN()/2","v":"Manche 6"},null,{"$f":"\"Manche \"&COLUMN()/2","v":"Manche 7"},null,{"$f":"\"Manche \"&COLUMN()/2","v":"Manche 8"},null,{"$f":"\"Manche \"&COLUMN()/2","v":"Manche 9"}]
[null,"Joueur"," Advers","Joueur"," Advers","Joueur"," Advers","Joueur"," Advers","Joueur"," Advers","Joueur"," Advers","Joueur"," Advers","Joueur"," Advers","Joueur"," Advers"]
[null,6,5,2,9,8,4,8,7,8,9,7,10,6,9,3,5,7,6]
[null,2,8,1,5,10,6,1,4,7,5,5,8,1,7,6,8,8,1]
[null,9,4,10,8,1,3,6,2,3,4,2,1,5,10,9,1,5,4]
[null,3,7,7,4,7,9,3,10,6,1,6,4,8,3,7,2,10,9]
[null,1,10,3,6,5,2,5,9,2,10,9,3,4,2,10,4,2,3]

{"sheet":"2 contre 2","index":1,"n_rows":12,"n_cols":17,"rows_kept":12,"cut":false,"hidden":false,"merged":[]}
[]
[null,"Tournois 2 contre 2. Ne se rencontrent ni ne sont partenaires plusieurs fois. "]
[null,"Ne peuvent participer qu'une fois à une rencontre en tête à tête si effectif non multiple de 4."]
[null,"Il pourrait être empêché que deux joueurs d'un même club ne soient adversaires."]
[]
[null,12," joueurs",null,4," manches"]
[]
[null,{"$f":"\"Manche \"&(COLUMN()+2)/4","v":"Manche 1"},null,null,null,{"$f":"\"Manche \"&(COLUMN()+2)/4","v":"Manche 2"},null,null,null,{"$f":"\"Manche \"&(COLUMN()+2)/4","v":"Manche 3"},null,null,null,{"$f":"\"Manche \"&(COLUMN()+2)/4","v":"Manche 4"}]
[null,null,"Equipe","Contre",null,null,"Equipe","Contre",null,null,"Equipe","Contre",null,null,"Equipe","Contre"]
[null,6,12,9,1,4,3,6,9,1,7,9,10,12,1,4,5]
[null,4,10,3,8,2,10,11,12,4,6,5,2,10,8,2,9]
[null,11,2,7,5,8,7,1,5,8,12,3,11,6,3,11,7]

{"sheet":"3 contre 3","index":2,"n_rows":15,"n_cols":25,"rows_kept":15,"cut":false,"hidden":false,"merged":[]}
[]
[null,"Tournois 3 contre 3. Ne se rencontrent ni ne sont partenaires plusieurs fois."]
[null,"Ne peuvent participer qu'une fois à une rencontre en doublette si effectif non multiple de 6."]
[null,"Il pourrait être empêché que deux personnes d'un même club ne soient adversaires."]
[]
[null,32," joueurs",null,4," manches"]
[]
[null,{"$f":"\"Manche \"&(COLUMN()+4)/6","v":"Manche 1"},null,null,null,null,null,{"$f":"\"Manche \"&(COLUMN()+4)/6","v":"Manche 2"},null,null,null,null,null,{"$f":"\"Manche \"&(COLUMN()+4)/6","v":"Manche 3"},null,null,null,null,null,{"$f":"\"Manche \"&(COLUMN()+4)/6","v":"Manche 4"}]
[null,null,null,"Equipe","Contre",null,null,null,null,"Equipe","Contre",null,null,null,null,"Equipe","Contre",null,null,null,null,"Equipe","Contre"]
[null,21,19,18,14,7,13,22,29,15,7,16,23,29,31,4,26,10,11,12,20,26,18,14,10]
[null,1,32,23,3,4,10,9,6,17,8,12,5,32,2,30,14,5,28,5,31,9,7,4,28]
[null,27,16,24,2,20,6,1,20,18,25,30,28,24,3,6,21,17,25,8,1,17,21,22,2]
[null,30,26,22,9,15,11,3,31,32,19,27,13,27,12,23,13,16,8,25,24,15,19,29,11]
[null,null,31,8,29,28,null,null,24,26,10,21,null,null,7,20,1,19,null,null,13,32,6,23]
[null,null,12,17,5,25,null,null,4,11,14,2,null,null,15,18,9,22,null,null,16,30,3,27]

{"sheet":"Poules indépendantes","index":3,"n_rows":20,"n_cols":9,"rows_kept":20,"cut":false,"hidden":false,"merged":[]}
[]
[null,"Tournois par poules indépendantes. Ne figurent plusieurs fois ensembles dans une poule."]
[]
[null,13," joueurs",null,4," par poule",null,4," participations"]
[]
[]
[null,"Poule","Joueurs"]
[null,{"$f":"\"P \"&ROW()-ROW($B$7)","v":"P 1"},3,1,13,6]
[null,"P 2",1,9,8,10]
[null,"P 3",2,11,3,10]
[null,"P 4",7,5,2,1]
[null,"P 5",5,13,8,11]
[null,"P 6",10,5,6,4]
[null,"P 7",2,9,4,13]
[null,"P 8",5,9,3,12]
[null,"P 9",7,3,8,4]
[null,"P 10",8,6,12,2]
[null,"P 11",13,10,7,12]
[null,{"$f":"\"P \"&ROW()-ROW($B$7)","v":"P 12"},12,4,11,1]
[null,{"$f":"\"P \"&ROW()-ROW($B$7)","v":"P 13"},11,9,7,6]